bitfinex/quotes_SOLUSD_20260211
["timestamp","ask_amount","ask_price","bid_price","bid_amount"]
[1770790535523,12.38742923,80.727,80.661,0.50000001]
[1770790535832,10.04561027,80.7,80.661,0.50000001]
[1770790536030,5.13032502,80.724,80.661,0.50000001]
[1770790536240,5.36086188,80.723,80.661,0.50000001]
[1770790536423,10.04561027,80.69,80.661,0.50000001]
[1770790536623,142.4554362,80.727,80.661,0.50000001]
[1770790536624,10.04561027,80.7,80.661,0.50000001]
[1770790536821,10.04561027,80.71,80.671,0.50000001]
[1770790537020,12.3866327,80.733,80.68,10.04561027]
[1770790537221,12.3866327,80.733,80.672,12.39587465]
[1770790537222,10.04561027,80.76,80.691,0.50000001]
[1770790537421,49.50918822,80.794,80.701,0.50000001]
[1770790537422,10.04561027,80.74,80.701,0.50000001]
[1770790537835,12.38252083,80.759,80.701,0.50000001]
[1770790538031,10.04561027,80.74,80.701,0.50000001]
[1770790539042,10.04561027,80.74,80.703,0.50000001]
[1770790539239,10.04561027,80.74,80.71,10.04561027]
[1770790539440,10.04561027,80.73,80.699,0.50000001]
[1770790539644,10.04561027,80.72,80.688,0.50000001]
[1770790539864,10.04561027,80.71,80.676,0.50000001]
[1770790540648,10.04561027,80.7,80.676,0.50000001]
[1770790540844,5.36086188,80.734,80.678,0.50000001]
[1770790540845,10.04561027,80.71,80.678,0.50000001]
[1770790541245,10.04561027,80.71,80.67,10.04561027]
[1770790541246,10.04561027,80.71,80.68,0.50000001]
[1770790541440,5.36086188,80.734,80.68,0.50000001]
[1770790541441,10.04561027,80.72,80.681,0.50000001]
[1770790541654,10.04561027,80.73,80.69,10.04561027]
[1770790541851,10.04561027,80.73,80.691,0.50000001]
[1770790542047,10.04561027,80.72,80.691,0.50000001]
[1770790542851,10.04561027,80.71,80.678,0.50000001]
[1770790543457,10.04561027,80.7,80.668,0.50000001]
[1770790543761,10.04561027,80.71,80.675,0.50000001]
[1770790544459,10.04561027,80.72,80.681,0.50000001]
[1770790544756,10.04561027,80.72,80.679,12.39479914]
[1770790544757,10.04561027,80.73,80.691,0.50000001]
[1770790544958,12.3845144,80.746,80.701,0.50000001]
[1770790545170,10.04561027,80.74,80.701,0.50000001]
[1770790545399,10.04561027,80.73,80.701,0.50000001]
[1770790545548,5.36086188,80.755,80.682,0.50000001]
[1770790545743,10.04561027,80.73,80.693,0.50000001]
[1770790545970,10.04561027,80.76,80.721,0.50000001]
[1770790546472,10.04561027,80.75,80.721,0.50000001]
[1770790546966,10.04561027,80.76,80.721,0.50000001]
[1770790547356,10.04561027,80.75,80.721,0.50000001]
[1770790547954,10.04561027,80.76,80.721,0.50000001]
[1770790548161,10.04561027,80.76,80.723,0.50000001]
[1770790548544,10.04561027,80.77,80.731,0.50000001]
[1770790548748,12.37991482,80.776,80.731,0.50000001]
[1770790548949,10.10803237,80.77,80.731,0.50000001]
[1770790549171,12.37746311,80.792,80.751,0.50000001]
[1770790549473,12.37746311,80.792,80.715,49.55704387]
[1770790549474,10.10803237,80.76,80.724,0.50000001]
[1770790549670,10.10803237,80.76,80.72,10.10803237]
[1770790549671,10.10803237,80.76,80.727,0.50000001]
[1770790550453,10.10803237,80.76,80.728,0.50000001]
[1770790551068,10.10803237,80.74,80.704,0.50000001]
[1770790551276,10.10803237,80.73,80.704,0.50000001]
[1770790551673,43.33292063,80.77,80.711,0.50000001]
[1770790551875,10.10803237,80.74,80.711,0.50000001]
[1770790552075,5.36086188,80.769,80.711,0.50000001]
[1770790552275,10.10803237,80.75,80.711,0.50000001]
[1770790553281,12.38083446,80.77,80.721,0.50000001]
[1770790553477,10.10803237,80.75,80.721,0.50000001]
[1770790553782,10.10803237,80.76,80.721,0.50000001]
[1770790554277,10.10803237,80.76,80.723,0.50000001]
[1770790554483,10.10803237,80.75,80.723,0.50000001]
[1770790555180,10.10803237,80.76,80.723,0.50000001]
[1770790555575,10.10803237,80.75,80.725,0.50000001]
[1770790555970,10.10803237,80.74,80.713,0.50000001]
[1770790556166,10.10803237,80.75,80.717,0.50000001]
[1770790556368,10.10803237,80.75,80.707,37.66]
[1770790556369,10.10803237,80.75,80.722,0.50000001]
[1770790556675,10.11195246,80.75,80.725,0.50000001]
[1770790557079,30.94245869,80.796,80.741,0.50000001]
[1770790557277,10.11195246,80.8,80.761,0.50000001]
[1770790557463,10.11195246,80.8,80.771,0.50000001]
[1770790557659,10.11195246,80.81,80.771,0.50000001]
[1770790557966,10.11195246,80.8,80.781,0.50000001]
[1770790558176,12.37348115,80.818,80.781,0.50000001]
[1770790558370,38.09032502,80.853,80.781,0.50000001]
[1770790558576,5.13032502,80.849,80.781,0.50000001]
[1770790558769,5.36086188,80.848,80.781,0.50000001]
[1770790558978,10.11195246,80.82,80.781,0.50000001]
[1770790559366,10.11195246,80.82,80.791,0.50000001]
[1770790559569,10.11195246,80.83,80.791,0.50000001]
[1770790560079,10.11195246,80.83,80.793,0.50000001]
[1770790560283,12.36732948,80.859,80.811,0.50000001]
[1770790560472,12.36732948,80.859,80.821,0.50000001]
[1770790561186,10.11195246,80.86,80.821,0.50000001]
[1770790561391,10.11195246,80.86,80.831,0.50000001]
[1770790561588,10.11195246,80.88,80.841,0.50000001]
[1770790561762,10.11195246,80.88,80.851,0.50000001]
[1770790561962,10.11195246,80.9,80.861,0.50000001]
[1770790562162,10.11195246,80.9,80.832,154.64172602]
[1770790562163,10.11195246,80.89,80.856,37.56]
[1770790562396,10.11195246,80.88,80.857,0.50000001]
[1770790562575,10.11195246,80.89,80.857,0.50000001]
[1770790562772,5.36086188,80.897,80.822,12.37278751]
[1770790563089,10.11195246,80.84,80.821,0.50000001]
[1770790563266,10.11195246,80.85,80.821,0.50000001]
[1770790563680,10.11195246,80.84,80.806,0.50000001]
[1770790563882,10.11195246,80.84,80.811,0.50000001]
[1770790564188,10.11195246,80.85,80.811,0.50000001]
[1770790564567,30.91623978,80.864,80.811,0.50000001]
[1770790564773,10.11195246,80.85,80.817,0.50000001]
[1770790564980,10.11195246,80.84,80.808,37.52]
[1770790565384,10.11195246,80.83,80.805,0.50000001]
[1770790565693,10.11195246,80.83,80.794,0.50000001]
[1770790565872,12.37179725,80.829,80.794,0.50000001]
[1770790566070,12.36934875,80.845,80.794,0.50000001]
[1770790566268,10.11195246,80.84,80.81,10.11195246]
[1770790566493,10.11195246,80.85,80.821,0.50000001]
[1770790566697,12.36720711,80.859,80.807,0.50000001]
[1770790566894,10.11195246,80.84,80.81,10.11195246]
[1770790567193,10.11195246,80.84,80.805,12.37535469]
[1770790567194,10.11195246,80.84,80.811,0.50000001]
[1770790567393,10.11195246,80.88,80.821,0.50000001]
[1770790567394,10.11195246,80.85,80.821,0.50000001]
[1770790567690,10.11195246,80.85,80.781,49.51609474]
[1770790567691,10.11195246,80.84,80.809,12.37471315]
[1770790567904,10.11195246,80.85,80.812,0.50000001]
[1770790568086,10.11195246,80.84,80.812,0.50000001]
[1770790568592,10.11195246,80.86,80.821,0.50000001]
[1770790568779,10.11195246,80.87,80.831,0.50000001]
[1770790569678,10.11195246,80.87,80.83,10.11195246]
[1770790569679,10.11195246,80.87,80.833,0.50000001]
[1770790569880,10.11195246,80.88,80.841,0.50000001]
[1770790570280,10.11195246,80.87,80.841,0.50000001]
[1770790570592,12.36155063,80.896,80.851,0.50000001]
[1770790570790,10.11195246,80.89,80.851,0.50000001]
[1770790571284,10.11195246,80.89,80.852,37.44]
[1770790571488,10.11195246,80.89,80.853,0.50000001]
[1770790571688,10.11195246,80.89,80.855,0.50000001]
[1770790572193,10.11195246,80.89,80.854,12.36797189]
[1770790572194,10.11195246,80.89,80.861,0.50000001]
[1770790573195,10.11195246,80.92,80.881,0.50000001]
[1770790573597,10.11195246,80.9,80.881,0.50000001]
[1770790573788,10.11195246,80.91,80.881,0.50000001]
[1770790574299,10.11195246,80.9,80.881,0.50000001]
[1770790574484,10.11195246,80.91,80.881,0.50000001]
[1770790574684,10.11195246,80.91,80.881,12.86381424]
[1770790574902,10.11195246,80.91,80.881,0.50000001]
[1770790576492,5.36086188,80.938,80.871,37.36]
[1770790576493,10.11195246,80.89,80.871,37.36]
[1770790576705,10.11195246,80.9,80.871,37.36]
[1770790577203,10.11195246,80.9,80.872,12.86508929]
[1770790577398,10.11195246,80.9,80.872,0.50000001]
[1770790577800,10.11195246,80.89,80.866,12.36600508]
[1770790578107,12.35956444,80.909,80.867,0.50000001]
[1770790578290,43.2488539,80.927,80.867,0.50000001]
[1770790578595,43.2488539,80.927,80.869,0.50000001]
[1770790578800,10.11195246,80.9,80.871,0.50000001]
[1770790580204,10.11195246,80.89,80.871,0.50000001]
[1770790580601,30.89611211,80.917,80.871,0.50000001]
[1770790580805,10.11195246,80.9,80.871,0.50000001]
[1770790580999,10.11195246,80.9,80.873,0.50000001]
[1770790581202,12.35903365,80.913,80.872,12.36521911]
[1770790581418,12.35903365,80.913,80.812,0.50000001]
[1770790581419,5.36086188,80.879,80.812,0.50000001]
[1770790581588,5.36086188,80.879,80.829,12.37179725]
[1770790581896,10.11195246,80.86,80.829,12.37179725]
[1770790582220,10.11195246,80.84,80.805,0.50000001]
[1770790582394,10.11195246,80.82,80.795,12.37687277]
[1770790582788,10.11195246,80.85,80.811,0.50000001]
[1770790583508,10.11195246,80.85,80.813,0.50000001]
[1770790583715,5.36086188,80.892,80.841,0.50000001]
[1770790583904,10.11195246,80.88,80.841,0.50000001]
[1770790584117,10.11195246,80.89,80.851,0.50000001]
[1770790584420,10.11195246,80.88,80.853,0.50000001]
[1770790584589,10.11195246,80.89,80.855,0.50000001]
[1770790585283,10.11195246,80.88,80.856,37.44]
[1770790585488,10.11195246,80.88,80.855,0.50000001]
[1770790585903,10.11195246,80.89,80.855,0.50000001]
[1770790586092,5.36086188,80.914,80.855,0.50000001]
[1770790586302,5.13032502,80.919,80.855,0.50000001]
[1770790586715,10.11195246,80.88,80.855,0.50000001]
[1770790587516,10.11195246,80.87,80.844,0.50000001]
[1770790587717,10.11195246,80.87,80.844,37.92000001]
[1770790587894,10.11195246,80.85,80.822,0.50000001]
[1770790588094,10.11195246,80.83,80.805,0.50000001]
[1770790588307,5.36086188,80.875,80.814,12.37398289]
[1770790588515,10.11195246,80.84,80.809,12.87484446]
[1770790588702,10.11195246,80.84,80.811,12.37455296]
[1770790588913,30.91623205,80.864,80.811,12.37455296]
[1770790588914,10.11195246,80.85,80.812,0.50000001]
[1770790589518,10.11195246,80.86,80.821,0.50000001]
[1770790589719,30.90701478,80.888,80.831,0.50000001]
[1770790589896,10.11195246,80.87,80.841,0.50000001]
[1770790590099,10.11195246,80.88,80.841,0.50000001]
[1770790590298,10.11195246,80.89,80.851,0.50000001]
[1770790590731,10.11195246,80.89,80.853,0.50000001]
[1770790591101,54.56110701,80.922,80.852,12.36827784]
[1770790591102,30.89547443,80.918,80.861,0.50000001]
[1770790591311,10.11195246,80.89,80.855,0.50000001]
[1770790591515,30.89547443,80.918,80.855,0.50000001]
[1770790591516,10.11195246,80.88,80.855,0.50000001]
[1770790591697,10.11195246,80.88,80.847,0.50000001]
[1770790591899,10.11195246,80.89,80.853,0.50000001]
[1770790592328,10.11195246,80.89,80.861,0.50000001]
[1770790592723,10.11195246,80.88,80.861,0.50000001]
[1770790593019,10.11195246,80.88,80.844,37.38]
[1770790593020,10.11195246,80.9,80.863,0.50000001]
[1770790593415,12.36109222,80.899,80.863,0.50000001]
[1770790593727,10.11195246,80.89,80.863,0.50000001]
[1770790594407,10.11195246,80.88,80.863,0.50000001]
[1770790594609,5.36086188,80.938,80.871,0.50000001]
[1770790594924,5.36086188,80.938,80.861,49.72688251]
[1770790594925,10.11195246,80.89,80.862,0.50000001]
[1770790595326,10.11195246,80.9,80.869,12.36565986]
[1770790595629,10.11195246,80.9,80.865,0.50000001]
[1770790596410,10.11195246,80.9,80.869,0.50000001]
[1770790596709,12.35956444,80.909,80.873,0.50000001]
[1770790596911,10.11195246,80.9,80.873,0.50000001]
[1770790597111,5.36086188,80.929,80.873,0.50000001]
[1770790597308,3.49,82.123,80.875,0.50000001]
[1770790597309,10.11195246,80.91,80.875,0.50000001]
[1770790597502,10.11195246,80.9,80.875,0.50000001]
[1770790598107,10.11195246,80.91,80.875,0.50000001]
[1770790599023,10.11195246,80.9,80.877,0.50000001]
[1770790599410,12.35956444,80.909,80.877,0.50000001]
[1770790599603,10.11195246,80.91,80.877,0.50000001]
[1770790600309,22.47143588,80.91,80.877,0.50000001]
[1770790601120,10.11195246,80.91,80.878,12.36430178]
[1770790601422,10.11195246,80.91,80.879,0.50000001]
[1770790601627,12.35806567,80.919,80.881,0.50000001]
[1770790601919,10.11195246,80.9,80.881,0.50000001]
[1770790602101,10.11195246,80.9,80.877,0.50000001]
[1770790602910,43.25315829,80.919,80.875,37.34]
[1770790603221,10.11195246,80.9,80.867,0.50000001]
[1770790603402,10.11195246,80.9,80.87,12.36549466]
[1770790603607,10.11195246,80.9,80.87,12.86549467]
[1770790603824,10.11195246,80.91,80.877,0.50000001]
[1770790604014,10.11195246,80.91,80.881,0.50000001]
[1770790604218,10.11195246,80.9,80.881,0.50000001]
[1770790604526,10.11195246,80.91,80.881,0.50000001]
[1770790604829,10.11195246,80.89,80.876,37.34]
[1770790605212,10.11195246,80.9,80.869,0.50000001]
[1770790606328,12.36109222,80.899,80.869,0.50000001]
[1770790606620,12.36109222,80.899,80.87,0.50000001]
[1770790607526,10.11195246,80.9,80.871,0.50000001]
[1770790607828,22.47136415,80.91,80.871,0.50000001]
[1770790608025,22.47136415,80.91,80.873,0.50000001]
[1770790608328,22.47136415,80.91,80.874,12.36491332]
[1770790608624,10.11195246,80.91,80.881,0.50000001]
[1770790609630,10.11195246,80.92,80.881,0.50000001]
[1770790609925,10.11195246,80.91,80.881,0.50000001]
[1770790610438,10.11195246,80.91,80.883,0.50000001]
[1770790610829,10.11195246,80.92,80.883,0.50000001]
[1770790611015,10.07136901,80.92,80.883,0.50000001]
[1770790611216,10.07136901,80.91,80.883,0.50000001]
[1770790611532,43.23870233,80.946,80.883,0.50000001]
[1770790611533,10.07136901,80.92,80.883,0.50000001]
[1770790611914,10.07136901,80.91,80.883,0.50000001]
[1770790612110,10.07136901,80.9,80.882,37.32]
[1770790612310,10.07136901,80.91,80.876,49.68450391]
[1770790612538,10.07136901,80.9,80.876,37.32]
[1770790612908,10.07136901,80.9,80.877,0.50000001]
[1770790613227,12.35956444,80.909,80.881,0.50000001]
[1770790614432,32.18,80.944,80.881,0.50000001]
[1770790614613,10.07136901,80.91,80.881,0.50000001]
[1770790615010,5.13032502,80.936,80.883,0.50000001]
[1770790615214,10.07136901,80.91,80.883,0.50000001]
[1770790615727,10.07136901,80.92,80.883,0.50000001]
[1770790616317,10.07136901,80.92,80.885,0.50000001]
[1770790616318,12.35803704,80.919,80.885,0.50000001]
[1770790616643,12.35803704,80.919,80.887,0.50000001]
[1770790617440,12.3531519,80.951,80.891,0.50000001]
[1770790617614,10.07136901,80.93,80.901,0.50000001]
[1770790617814,10.07136901,80.94,80.901,0.50000001]
[1770790618115,10.07136901,80.95,80.911,0.50000001]
[1770790618430,10.07136901,80.93,80.913,0.50000001]
[1770790618614,10.07136901,80.94,80.915,0.50000001]
[1770790620335,10.07136901,80.94,80.914,37.3]
[1770790620336,10.07136901,80.98,80.933,0.50000001]
[1770790620521,12.34735581,80.989,80.951,0.50000001]
[1770790620715,12.34735581,80.989,80.952,0.50000001]
[1770790620945,12.34735581,80.989,80.951,37.3]
[1770790620946,49.34777094,81.058,80.98,10.07136901]
[1770790621130,49.34206318,81.067,80.991,0.50000001]
[1770790621131,10.07136901,81.03,80.991,0.50000001]
[1770790621432,49.34807156,81.057,80.98,10.07136901]
[1770790621433,22.61414907,81.02,80.98,10.07136901]
[1770790621631,10.07136901,81.06,81.001,0.47377255]
[1770790621830,10.07136901,81.06,81.0,10.07136901]
[1770790621831,10.07136901,81.07,81.04,10.07136901]
[1770790622038,10.07136901,81.07,81.038,0.47377255]
[1770790622337,10.07136901,81.07,81.009,0.47377255]
[1770790622338,0.20499546,81.049,81.009,0.47377255]
[1770790622635,10.07136901,81.03,80.991,0.47377255]
[1770790623019,0.20499546,81.029,80.988,17.28]
[1770790623321,10.07136901,81.06,80.991,0.47377255]
[1770790623322,0.20499546,81.04,80.991,0.47377255]
[1770790623519,10.07136901,81.03,81.001,0.47377255]
[1770790623718,0.20499546,81.04,81.001,0.47377255]
[1770790624120,0.20510581,81.068,81.03,10.07136901]
[1770790624336,12.33547559,81.067,81.031,0.47377255]
[1770790624839,10.07136901,81.07,81.04,10.07136901]
[1770790625017,10.07136901,81.07,81.04,0.47377255]
[1770790625018,12.33517127,81.069,81.04,0.47377255]
[1770790625218,10.07136901,81.07,81.041,0.47377255]
[1770790626434,10.07136901,81.07,81.043,0.47377255]
[1770790627542,12.33364989,81.079,81.05,10.54514156]
[1770790627840,10.27136901,81.08,81.051,0.47377255]
[1770790628327,0.2,81.08,81.051,0.47377255]
[1770790628842,10.27136901,81.08,81.051,0.47377255]
[1770790629023,10.07136901,81.07,81.051,0.47377255]
[1770790629225,0.2,81.08,81.051,0.47377255]
[1770790629536,22.60489981,81.08,81.051,0.47377255]
[1770790629737,10.07136901,81.07,81.044,0.47377255]
[1770790629931,12.5335308,81.08,81.044,0.47377255]
[1770790630133,22.60489981,81.08,81.045,0.47377255]
[1770790630539,0.2,81.08,81.05,0.47377255]
[1770790630736,10.27136901,81.08,81.053,0.47377255]
[1770790630942,0.2,81.08,81.053,0.47377255]
[1770790631246,0.2,81.08,81.043,0.47377255]
[1770790631247,10.07136901,81.07,81.043,0.47377255]
[1770790631546,10.07136901,81.07,81.045,0.47377255]
[1770790632255,10.27136901,81.08,81.051,0.47377255]
[1770790632750,10.07136901,81.07,81.042,0.47377255]
[1770790632958,10.27136901,81.08,81.045,0.47377255]
[1770790633327,12.33364989,81.079,81.047,0.47377255]
[1770790633551,10.27136901,81.08,81.047,0.47377255]
[1770790633934,22.60487409,81.08,81.047,0.47377255]
[1770790634141,10.07136901,81.07,81.047,0.47377255]
[1770790634560,0.20610705,81.059,81.013,12.34366222]
[1770790634730,0.20610705,81.059,80.973,49.39916554]
[1770790634731,10.07136901,81.03,81.006,12.34466723]
[1770790634925,10.07136901,81.03,81.011,12.34397198]
[1770790635130,10.07136901,81.04,81.011,12.81774453]
[1770790635337,10.07136901,81.04,81.012,0.47377255]
[1770790635535,10.07136901,81.05,81.015,0.47377255]
[1770790636437,10.07136901,81.05,81.017,0.47377255]
[1770790637147,22.40799199,81.06,81.021,0.47377255]
[1770790637330,10.07136901,81.05,81.021,0.47377255]
[1770790637533,10.07136901,81.04,81.014,37.24]
[1770790637743,10.07136901,81.04,81.014,12.81724742]
[1770790637963,10.07136901,81.04,81.017,0.47377255]
[1770790638132,10.07136901,81.05,81.017,0.47377255]
[1770790638340,10.07136901,81.04,81.017,0.47377255]
[1770790640050,0.20652517,81.029,80.981,0.47377255]
[1770790640228,10.07136901,81.02,80.983,0.48911589]
[1770790640432,10.07136901,81.01,80.985,0.48911589]
[1770790640630,10.07136901,81.02,80.985,0.48911589]
[1770790640930,10.07136901,81.02,80.99,10.07136901]
[1770790641136,10.07136901,81.02,80.991,0.48911589]
[1770790641544,10.07136901,81.03,80.991,0.48911589]
[1770790641850,12.34042767,81.035,81.001,0.48911589]
[1770790642034,12.33851962,81.047,81.001,0.48911589]
[1770790642233,10.07136901,81.04,81.001,0.48911589]
[1770790643035,10.07136901,81.03,81.002,12.34537418]
[1770790643246,10.07136901,81.03,81.003,0.48911589]
[1770790643437,10.07136901,81.02,80.998,0.48911589]
[1770790643636,10.07136901,81.02,80.99,10.07136901]
[1770790643637,10.07136901,81.03,81.003,0.48911589]
[1770790644755,10.07136901,81.04,81.003,0.48911589]
[1770790645458,10.07136901,81.04,81.005,0.45849888]
[1770790645658,10.07136901,81.05,81.011,0.45849888]
[1770790646255,12.33821515,81.049,81.011,0.45849888]
[1770790647063,10.07136901,81.04,81.011,0.45849888]
[1770790647941,10.07136901,81.04,81.012,12.34385029]
[1770790648158,10.07136901,81.04,81.013,0.45849888]
[1770790648359,10.07136901,81.05,81.013,0.45849888]
[1770790648664,12.33759028,81.054,81.013,0.45849888]
[1770790648964,12.33759028,81.054,81.012,43.20347602]
[1770790648965,10.07136901,81.06,81.031,0.45849888]
[1770790649941,10.07136901,81.06,81.032,12.34080363]
[1770790650142,10.07136901,81.06,81.033,0.45849888]
[1770790650357,10.07136901,81.07,81.041,0.45849888]
[1770790651263,12.33367873,81.079,81.041,0.45849888]
[1770790651462,10.07136901,81.07,81.041,0.45849888]
[1770790651950,0.2,81.08,81.05,10.07136901]
[1770790652150,10.27136901,81.08,81.051,0.45849888]
[1770790652846,22.60487691,81.08,81.051,0.45849888]
[1770790653044,10.27904416,81.07,81.046,37.16]
[1770790653359,10.07136901,81.06,81.035,0.45849888]
[1770790653579,43.36725234,81.08,81.042,43.18748302]
[1770790653580,0.2,81.08,81.042,43.18748302]
[1770790653775,49.30176466,81.133,81.042,43.18748302]
[1770790653776,49.29150205,81.15,81.071,0.45849888]
[1770790653949,49.29150205,81.15,81.042,93.77853456]
[1770790653950,10.07136901,81.09,81.063,37.22]
[1770790654142,10.07136901,81.08,81.063,37.22]
[1770790654556,10.07136901,81.09,81.063,12.33603777]
[1770790655548,12.33076031,81.098,81.063,12.33603777]
[1770790655748,12.33076031,81.098,81.064,0.45849888]
[1770790656253,0.2520697,81.099,81.07,10.07136901]
[1770790656455,0.2520697,81.099,81.071,0.45849888]
[1770790657651,0.2520697,81.099,81.081,0.45849888]
[1770790659277,10.07136901,81.13,81.091,0.45849888]
[1770790659444,12.32559286,81.132,81.091,0.45849888]
[1770790659646,0.20190827,81.133,81.093,0.45849888]
[1770790659851,10.07136901,81.15,81.111,0.45849888]
[1770790660646,0.2,81.16,81.121,0.45849888]
[1770790660647,12.32214109,81.155,81.121,0.45849888]
[1770790660974,0.2,81.16,81.13,10.07136901]
[1770790661171,10.27136901,81.16,81.13,0.45849888]
[1770790661353,12.32154431,81.159,81.13,0.45849888]
[1770790661547,12.32154431,81.159,81.12,47.23136901]
[1770790661548,10.27136901,81.14,81.121,0.45849888]
[1770790661781,0.20294936,81.129,81.079,0.45849888]
[1770790661984,10.07136901,81.1,81.035,0.45849888]
[1770790662155,0.20294936,81.119,81.025,104.92687876]
[1770790662156,10.07136901,81.09,81.052,0.45849888]
[1770790662660,0.20328521,81.102,81.061,0.45849888]
[1770790662861,0.20328521,81.102,81.06,10.07136901]
[1770790662862,0.20328521,81.089,81.047,0.45849888]
[1770790663361,0.20362547,81.111,81.06,10.07136901]
[1770790663670,10.07136901,81.18,81.05,0.45849888]
[1770790663671,12.33364989,81.079,81.05,0.45849888]
[1770790663880,10.07136901,81.08,81.05,0.45849888]
[1770790664251,110.95458749,81.115,81.049,12.33821515]
[1770790664252,10.07136901,81.09,81.061,0.45849888]
[1770790665256,10.07136901,81.1,81.061,0.45849888]
[1770790665850,12.33015215,81.102,81.071,0.45849888]
[1770790666277,10.07136901,81.1,81.071,0.45849888]
[1770790666474,10.07136901,81.1,81.062,12.33623646]
[1770790666475,10.07136901,81.09,81.062,0.45849888]
[1770790667883,10.07136901,81.07,81.047,37.18]
[1770790668177,12.33212889,81.089,80.985,49.3915219]
[1770790668178,0.20494319,81.059,81.023,0.45849888]
[1770790668360,10.07136901,81.04,81.023,0.45849888]
[1770790668556,9.12136901,81.04,81.023,0.45849888]
[1770790668876,10.07136901,81.05,81.023,0.45849888]
[1770790669654,22.4094742,81.05,81.015,0.45849888]
[1770790669867,10.07136901,81.05,81.021,0.45849888]
[1770790670079,10.07136901,81.04,81.009,0.45849888]
[1770790670255,10.07136901,81.05,81.014,12.34354556]
[1770790670575,10.07136901,81.05,81.015,0.46486881]
[1770790671165,10.07136901,81.04,81.015,0.46486881]
[1770790671475,10.07136901,81.04,81.009,12.34422449]
[1770790671654,0.20618918,81.049,80.972,60.69032502]
[1770790671655,10.07136901,81.05,81.017,0.46486881]
[1770790671854,10.07136901,81.05,81.021,0.46486881]
[1770790672762,12.33754187,81.054,81.021,0.46486881]
[1770790672964,10.03760942,81.05,81.021,0.46486881]
[1770790673265,12.33558077,81.067,81.031,0.46486881]
[1770790674280,12.33558077,81.067,81.033,0.46486881]
[1770790675772,10.03760942,81.06,81.033,0.46486881]
[1770790675987,0.20769693,81.059,81.023,0.46486881]
[1770790676287,22.37728249,81.04,81.014,0.46486881]
[1770790676457,10.03760942,81.04,81.015,12.34339319]
[1770790676660,12.33973765,81.039,81.016,0.46486881]
[1770790676869,10.03760942,81.03,80.997,12.3460377]
[1770790677080,10.03760942,81.02,80.997,12.3460377]
[1770790677278,10.03760942,81.02,80.992,0.46486881]
[1770790678159,10.03760942,81.01,80.98,10.50247823]
[1770790678360,10.03760942,81.0,80.98,0.46486881]
[1770790678562,10.03760942,81.0,80.923,49.42965124]
[1770790678563,10.03760942,80.99,80.95,10.50247823]
[1770790678755,10.03760942,80.98,80.95,0.46486881]
[1770790679182,0.20857242,80.989,80.953,0.46486881]
[1770790679386,10.03760942,80.98,80.953,0.46486881]
[1770790679765,10.05693171,80.98,80.953,0.46486881]
[1770790680480,10.05693171,81.0,80.961,0.46486881]
[1770790680669,10.05693171,80.98,80.951,0.46486881]
[1770790680987,10.05693171,80.98,80.955,0.46486881]
[1770790681375,10.05693171,80.98,80.944,0.46486881]
[1770790681586,10.05693171,80.98,80.954,0.46486881]
[1770790682179,43.41662603,81.005,80.961,0.46486881]
[1770790682391,10.05693171,81.0,80.961,0.46486881]
[1770790682778,12.34583143,80.999,80.963,0.46486881]
[1770790683168,31.06764676,81.016,80.962,12.35147353]
[1770790683169,12.34509104,81.004,80.971,0.46486881]
[1770790683363,12.3444181,81.009,80.971,0.46486881]
[1770790683885,30.8541893,81.027,80.981,0.46486881]
[1770790684182,10.05693171,81.02,80.981,0.46486881]
[1770790684593,12.34171747,81.026,80.991,0.46486881]
[1770790684765,12.34171747,81.026,80.993,0.46486881]
[1770790684969,0.21023421,80.999,80.948,0.46486881]
[1770790685191,10.05693171,80.96,80.931,0.46486881]
[1770790685491,10.05693171,80.96,80.93,10.15693171]
[1770790685492,0.21049864,80.982,80.938,0.46486881]
[1770790685694,5.13032502,81.006,80.93,10.15693171]
[1770790685695,10.05693171,80.99,80.961,0.46486881]
[1770790685863,10.05693171,81.0,80.961,0.46486881]
[1770790686185,10.05693171,80.98,80.949,0.46486881]
[1770790686567,10.05693171,80.99,80.961,0.46486881]
[1770790686881,12.34641229,80.996,80.963,0.46486881]
[1770790687082,10.05693171,80.98,80.951,0.46486881]
[1770790687278,10.05693171,80.99,80.957,0.46486881]
[1770790687877,10.05693171,80.99,80.961,0.46486881]
[1770790688277,0.21104768,80.969,80.924,12.35715358]
[1770790688581,10.05693171,80.94,80.913,0.46486881]
[1770790688782,10.05693171,80.96,80.931,0.46486881]
[1770790689389,10.05693171,80.95,80.917,0.46486881]
[1770790689685,10.05693171,80.95,80.911,0.46486881]
[1770790689868,0.21157377,80.961,80.911,0.46486881]
[1770790689869,10.05693171,80.94,80.911,0.46486881]
[1770790690794,12.35498338,80.939,80.911,0.46486881]
[1770790691195,10.05693171,80.96,80.921,0.46486881]
[1770790691399,10.4911869,80.978,80.921,0.46486881]
[1770790691400,10.05693171,80.95,80.921,0.46486881]
[1770790692674,12.35254178,80.955,80.922,0.46486881]
[1770790692895,10.05693171,80.96,80.922,0.46486881]
[1770790693188,12.35193122,80.959,80.922,0.46486881]
[1770790693396,12.35193122,80.959,80.924,0.46486881]
[1770790693598,12.35067547,80.968,80.931,0.46486881]
[1770790693776,10.05693171,80.97,80.931,0.46486881]
[1770790694481,12.35040571,80.969,80.931,0.46486881]